[Event "Titled Tuesday Blitz April 05 Early 2022"]
[White "Piesik, Piotr"]
[Black "Tymrakiewicz, Rafal"]
[WhiteFideId "1136194"]
[BlackFideId "1108832"]
[WhiteElo "2190"]
[BlackElo "2205"]
[Result "1-0"]
[Round "04"]
[TimeControl "180+1"]
[Date "2022.04.05"]
[WhiteClock "0:00:24"]
[BlackClock "0:00:01"]

1. Nf3 {[%clk 0:02:54]}  Nf6 {[%clk 0:02:57]} 2. g3 {[%clk 0:02:53]}  g6 {[%clk 0:02:57]} 3. Bg2 {[%clk 0:02:54]}  Bg7 {[%clk 0:02:57]} 4. O-O {[%clk 0:02:55]}  O-O {[%clk 0:02:57]} 5. d4 {[%clk 0:02:55]}  d6 {[%clk 0:02:55]} 6. Nbd2 {[%clk 0:02:55]}  Nc6 {[%clk 0:02:53]} 7. e4 {[%clk 0:02:55]}  e5 {[%clk 0:02:53]} 8. dxe5 {[%clk 0:02:56]}  Nxe5 {[%clk 0:02:46]} 9. Nxe5 {[%clk 0:02:56]}  dxe5 {[%clk 0:02:47]} 10. Qe2 {[%clk 0:02:56]}  c6 {[%clk 0:02:43]} 11. a4 {[%clk 0:02:56]}  Bg4 {[%clk 0:02:31]} 12. Bf3 {[%clk 0:02:55]}  Bh3 {[%clk 0:02:05]} 13. Rd1 {[%clk 0:02:54]}  Qc7 {[%clk 0:02:03]} 14. Nc4 {[%clk 0:02:52]}  Rfd8 {[%clk 0:02:01]} 15. Be3 {[%clk 0:02:51]}  Ne8 {[%clk 0:01:37]} 16. a5 {[%clk 0:02:41]}  Be6 {[%clk 0:01:23]} 17. Rxd8 {[%clk 0:02:34]}  Qxd8 {[%clk 0:01:22]} 18. Rd1 {[%clk 0:02:30]}  Qc7 {[%clk 0:01:22]} 19. b4 {[%clk 0:02:23]}  f6 {[%clk 0:01:15]} 20. Bg4 {[%clk 0:02:19]}  Qc8 {[%clk 0:01:09]} 21. Bxe6+ {[%clk 0:02:10]}  Qxe6 {[%clk 0:01:10]} 22. c3 {[%clk 0:02:01]}  Bf8 {[%clk 0:01:09]} 23. Qd3 {[%clk 0:01:51]}  a6 {[%clk 0:00:24]} 24. Nb6 {[%clk 0:01:45]}  Rb8 {[%clk 0:00:23]} 25. Qd7 {[%clk 0:01:40]}  Qxd7 {[%clk 0:00:21]} 26. Rxd7 {[%clk 0:01:41]}  Nd6 {[%clk 0:00:16]} 27. f3 {[%clk 0:01:35]}  Nb5 {[%clk 0:00:14]} 28. c4 {[%clk 0:01:27]}  Nd6 {[%clk 0:00:09]} 29. Bc5 {[%clk 0:01:24]}  Nf7 {[%clk 0:00:08]} 30. Bxf8 {[%clk 0:01:03]}  Kxf8 {[%clk 0:00:09]} 31. Kf2 {[%clk 0:00:54]}  Ke8 {[%clk 0:00:09]} 32. c5 {[%clk 0:00:51]}  h5 {[%clk 0:00:09]} 33. Ke3 {[%clk 0:00:49]}  Kf8 {[%clk 0:00:07]} 34. Rc7 {[%clk 0:00:46]}  Ke8 {[%clk 0:00:06]} 35. Nc4 {[%clk 0:00:46]}  Rd8 {[%clk 0:00:02]} 36. Rxb7 {[%clk 0:00:43]}  Rd4 {[%clk 0:00:03]} 37. Nb2 {[%clk 0:00:39]}  Nd8 {[%clk 0:00:02]} 38. Rb6 {[%clk 0:00:38]}  Kd7 {[%clk 0:00:02]} 39. Nd3 {[%clk 0:00:37]}  Kc7 {[%clk 0:00:02]} 40. Rxa6 {[%clk 0:00:37]}  Kb7 {[%clk 0:00:02]} 41. Rb6+ {[%clk 0:00:36]}  Kc7 {[%clk 0:00:02]} 42. f4 {[%clk 0:00:33]}  g5 {[%clk 0:00:02]} 43. fxe5 {[%clk 0:00:33]}  fxe5 {[%clk 0:00:01]} 44. Nxe5 {[%clk 0:00:33]}  Rd1 {[%clk 0:00:02]} 45. a6 {[%clk 0:00:32]}  Ra1 {[%clk 0:00:01]} 46. Nc4 {[%clk 0:00:25]}  Ne6 {[%clk 0:00:01]} 47. Rb7+ {[%clk 0:00:24]} 1-0


[Site "https://www.chess.com"]

[Event "Titled Tuesday Blitz April 05 Early 2022"]
[White "Pinheiro, Iung Alicio de O."]
[Black "Kaminski, Victor"]
[WhiteFideId "2104350"]
[BlackFideId "1131630"]
[WhiteElo "2507"]
[BlackElo "2181"]
[Result "1-0"]
[Round "04"]
[TimeControl "180+1"]
[Date "2022.04.05"]
[WhiteClock "0:00:32"]
[BlackClock "0:00:29"]

1. c4 {[%clk 0:03:00]}  e6 {[%clk 0:02:58]} 2. g3 {[%clk 0:02:59]}  d5 {[%clk 0:02:59]} 3. Bg2 {[%clk 0:02:59]}  Nf6 {[%clk 0:02:59]} 4. Nf3 {[%clk 0:02:58]}  Be7 {[%clk 0:02:56]} 5. O-O {[%clk 0:02:55]}  O-O {[%clk 0:02:57]} 6. Qc2 {[%clk 0:02:54]}  c5 {[%clk 0:02:51]} 7. d4 {[%clk 0:02:53]}  cxd4 {[%clk 0:02:49]} 8. Nxd4 {[%clk 0:02:52]}  Nc6 {[%clk 0:02:45]} 9. Nxc6 {[%clk 0:02:51]}  bxc6 {[%clk 0:02:45]} 10. b3 {[%clk 0:02:48]}  a5 {[%clk 0:02:40]} 11. Nc3 {[%clk 0:02:47]}  Ba6 {[%clk 0:02:34]} 12. Rd1 {[%clk 0:02:44]}  Qc8 {[%clk 0:02:31]} 13. Na4 {[%clk 0:02:38]}  Rd8 {[%clk 0:02:29]} 14. Nb6 {[%clk 0:02:35]}  Qb7 {[%clk 0:02:26]} 15. Nxa8 {[%clk 0:02:33]}  Qxa8 {[%clk 0:02:27]} 16. Bg5 {[%clk 0:02:23]}  h6 {[%clk 0:02:25]} 17. Bf4 {[%clk 0:02:22]}  a4 {[%clk 0:02:08]} 18. e4 {[%clk 0:01:46]}  Nxe4 {[%clk 0:02:00]} 19. Bxe4 {[%clk 0:01:44]}  dxe4 {[%clk 0:02:01]} 20. Qxe4 {[%clk 0:01:44]}  Bf6 {[%clk 0:01:57]} 21. Rac1 {[%clk 0:01:41]}  axb3 {[%clk 0:01:57]} 22. axb3 {[%clk 0:01:41]}  Rc8 {[%clk 0:01:52]} 23. Be5 {[%clk 0:01:40]}  Bg5 {[%clk 0:01:51]} 24. Rc3 {[%clk 0:01:36]}  Bb7 {[%clk 0:01:41]} 25. c5 {[%clk 0:01:25]}  Ba6 {[%clk 0:01:38]} 26. h4 {[%clk 0:01:24]}  Be7 {[%clk 0:01:36]} 27. Rd7 {[%clk 0:01:21]}  Bf8 {[%clk 0:01:33]} 28. Rf3 {[%clk 0:01:14]}  f5 {[%clk 0:01:32]} 29. Rxf5 {[%clk 0:01:03]}  exf5 {[%clk 0:01:10]} 30. Qxf5 {[%clk 0:01:03]}  Kh8 {[%clk 0:00:46]} 31. Qg6 {[%clk 0:00:53]}  Bd3 {[%clk 0:00:34]} 32. Bxg7+ {[%clk 0:00:37]}  Kg8 {[%clk 0:00:33]} 33. Qf7+ {[%clk 0:00:31]}  Kh7 {[%clk 0:00:29]} 34. Bxf8+ {[%clk 0:00:32]} 1-0


[Site "https://www.chess.com"]

[Event "Titled Tuesday Blitz April 05 Early 2022"]
[White "Politov, Pavel Y."]
[Black "Sai Agni Jeevitesh, J"]
[WhiteFideId "24110515"]
[BlackFideId "5070147"]
[WhiteElo "2090"]
[BlackElo "2190"]
[Result "0-1"]
[Round "04"]
[TimeControl "180+1"]
[Date "2022.04.05"]
[WhiteClock "0:00:02"]
[BlackClock "0:01:00"]

1. e4 {[%clk 0:03:00]}  c5 {[%clk 0:02:59]} 2. Nf3 {[%clk 0:03:00]}  g6 {[%clk 0:02:59]} 3. d4 {[%clk 0:02:59]}  cxd4 {[%clk 0:03:00]} 4. Nxd4 {[%clk 0:03:00]}  Nc6 {[%clk 0:03:00]} 5. c4 {[%clk 0:02:59]}  Nf6 {[%clk 0:03:00]} 6. Nc3 {[%clk 0:02:58]}  Nxd4 {[%clk 0:03:00]} 7. Qxd4 {[%clk 0:02:58]}  d6 {[%clk 0:03:01]} 8. Be2 {[%clk 0:02:54]}  Bg7 {[%clk 0:03:01]} 9. Be3 {[%clk 0:02:53]}  O-O {[%clk 0:03:01]} 10. Qd3 {[%clk 0:02:51]}  Be6 {[%clk 0:02:58]} 11. O-O {[%clk 0:02:50]}  Nd7 {[%clk 0:02:51]} 12. f3 {[%clk 0:02:21]}  Ne5 {[%clk 0:02:49]} 13. Qd2 {[%clk 0:02:10]}  Nxc4 {[%clk 0:02:48]} 14. Bxc4 {[%clk 0:02:09]}  Bxc4 {[%clk 0:02:48]} 15. Rfd1 {[%clk 0:02:09]}  Qa5 {[%clk 0:02:46]} 16. Bd4 {[%clk 0:01:56]}  Rfc8 {[%clk 0:02:34]} 17. Bxg7 {[%clk 0:01:52]}  Kxg7 {[%clk 0:02:35]} 18. Qd4+ {[%clk 0:01:53]}  Kg8 {[%clk 0:02:34]} 19. Nd5 {[%clk 0:01:27]}  Bxd5 {[%clk 0:02:32]} 20. exd5 {[%clk 0:01:26]}  Qc5 {[%clk 0:02:31]} 21. Qxc5 {[%clk 0:01:18]}  Rxc5 {[%clk 0:02:32]} 22. Rac1 {[%clk 0:01:17]}  Rac8 {[%clk 0:02:32]} 23. Rxc5 {[%clk 0:01:17]}  Rxc5 {[%clk 0:02:32]} 24. Rd2 {[%clk 0:01:17]}  g5 {[%clk 0:02:27]} 25. Kf2 {[%clk 0:01:15]}  Kg7 {[%clk 0:02:27]} 26. g3 {[%clk 0:01:08]}  Kf6 {[%clk 0:02:27]} 27. f4 {[%clk 0:01:08]}  gxf4 {[%clk 0:02:27]} 28. gxf4 {[%clk 0:01:08]}  Kf5 {[%clk 0:02:28]} 29. Ke3 {[%clk 0:01:06]}  Rc4 {[%clk 0:02:27]} 30. Rf2 {[%clk 0:00:59]}  Re4+ {[%clk 0:02:24]} 31. Kd3 {[%clk 0:00:58]}  Rxf4 {[%clk 0:02:24]} 32. Re2 {[%clk 0:00:57]}  e6 {[%clk 0:02:22]} 33. dxe6 {[%clk 0:00:56]}  fxe6 {[%clk 0:02:22]} 34. Rg2 {[%clk 0:00:54]}  Rh4 {[%clk 0:02:20]} 35. Rg7 {[%clk 0:00:52]}  Rxh2 {[%clk 0:02:15]} 36. Rxb7 {[%clk 0:00:49]}  h5 {[%clk 0:02:12]} 37. Kc3 {[%clk 0:00:45]}  Rh3+ {[%clk 0:02:03]} 38. Kc2 {[%clk 0:00:41]}  d5 {[%clk 0:01:49]} 39. Rxa7 {[%clk 0:00:39]}  d4 {[%clk 0:01:49]} 40. Rd7 {[%clk 0:00:33]}  Ke4 {[%clk 0:01:49]} 41. a4 {[%clk 0:00:31]}  Rh2+ {[%clk 0:01:46]} 42. Kb3 {[%clk 0:00:30]}  Rh1 {[%clk 0:01:29]} 43. a5 {[%clk 0:00:27]}  Ra1 {[%clk 0:01:28]} 44. Kb4 {[%clk 0:00:23]}  d3 {[%clk 0:01:28]} 45. b3 {[%clk 0:00:21]}  Ke3 {[%clk 0:01:26]} 46. Kc3 {[%clk 0:00:20]}  Rc1+ {[%clk 0:01:26]} 47. Kb2 {[%clk 0:00:17]}  Rc2+ {[%clk 0:01:26]} 48. Kb1 {[%clk 0:00:17]}  Rc6 {[%clk 0:01:25]} 49. b4 {[%clk 0:00:15]}  d2 {[%clk 0:01:25]} 50. b5 {[%clk 0:00:07]}  Rc5 {[%clk 0:01:25]} 51. b6 {[%clk 0:00:06]}  Rxa5 {[%clk 0:01:23]} 52. b7 {[%clk 0:00:04]}  Rb5+ {[%clk 0:01:18]} 53. Kc2 {[%clk 0:00:04]}  e5 {[%clk 0:01:09]} 54. Rxd2 {[%clk 0:00:04]}  Rxb7 {[%clk 0:01:08]} 55. Rh2 {[%clk 0:00:03]}  Rh7 {[%clk 0:01:04]} 56. Kd1 {[%clk 0:00:03]}  h4 {[%clk 0:01:03]} 57. Rh3+ {[%clk 0:00:03]}  Kf2 {[%clk 0:01:01]} 58. Kd2 {[%clk 0:00:03]}  e4 {[%clk 0:01:00]} 59. Re3 {[%clk 0:00:02]}  Rd7+ {[%clk 0:01:00]} 0-1


[Site "https://www.chess.com"]

[Event "Titled Tuesday Blitz April 05 Early 2022"]
[White "Postnikov, Daniil"]
[Black "Maximov, Dmitry"]
[WhiteFideId "4166329"]
[BlackFideId "14105659"]
[WhiteElo "2261"]
[BlackElo "2494"]
[Result "0-1"]
[Round "04"]
[TimeControl "180+1"]
[Date "2022.04.05"]
[WhiteClock "0:00:30"]
[BlackClock "0:01:33"]

1. d4 {[%clk 0:02:59]}  Nf6 {[%clk 0:02:59]} 2. c4 {[%clk 0:02:59]}  g6 {[%clk 0:03:00]} 3. Nc3 {[%clk 0:02:59]}  Bg7 {[%clk 0:03:00]} 4. e4 {[%clk 0:02:59]}  O-O {[%clk 0:03:01]} 5. Nf3 {[%clk 0:03:00]}  d6 {[%clk 0:03:01]} 6. Be2 {[%clk 0:03:00]}  e5 {[%clk 0:03:02]} 7. O-O {[%clk 0:02:59]}  Nc6 {[%clk 0:03:02]} 8. d5 {[%clk 0:02:59]}  Ne7 {[%clk 0:03:02]} 9. b4 {[%clk 0:02:59]}  Ne8 {[%clk 0:03:02]} 10. a4 {[%clk 0:02:58]}  f5 {[%clk 0:03:02]} 11. Nd2 {[%clk 0:02:57]}  Nf6 {[%clk 0:02:50]} 12. c5 {[%clk 0:02:57]}  fxe4 {[%clk 0:02:48]} 13. Ndxe4 {[%clk 0:02:55]}  Nf5 {[%clk 0:02:48]} 14. cxd6 {[%clk 0:01:58]}  cxd6 {[%clk 0:02:47]} 15. Nxf6+ {[%clk 0:01:52]}  Bxf6 {[%clk 0:02:46]} 16. Ne4 {[%clk 0:01:52]}  Be7 {[%clk 0:02:45]} 17. b5 {[%clk 0:01:46]}  Nd4 {[%clk 0:02:43]} 18. Ba3 {[%clk 0:01:42]}  Bf5 {[%clk 0:02:41]} 19. Bd3 {[%clk 0:01:36]}  Qd7 {[%clk 0:02:41]} 20. f3 {[%clk 0:01:32]}  Rac8 {[%clk 0:02:36]} 21. Rc1 {[%clk 0:01:29]}  Bxe4 {[%clk 0:02:33]} 22. Bxe4 {[%clk 0:01:22]}  Bg5 {[%clk 0:02:33]} 23. Rxc8 {[%clk 0:01:21]}  Rxc8 {[%clk 0:02:32]} 24. Bb2 {[%clk 0:01:16]}  Nf5 {[%clk 0:02:21]} 25. Qb3 {[%clk 0:00:53]}  Qf7 {[%clk 0:01:44]} 26. a5 {[%clk 0:00:39]}  Qf8 {[%clk 0:01:36]} 27. b6 {[%clk 0:00:37]}  Be3+ {[%clk 0:01:33]} 28. Kh1 {[%clk 0:00:34]}  Ng3+ {[%clk 0:01:33]} 29. hxg3 {[%clk 0:00:30]}  Qh6# {[%clk 0:01:33]} 0-1


[Site "https://www.chess.com"]

[Event "Titled Tuesday Blitz April 05 Early 2022"]
[White "Prohorov, Olexandr"]
[Black "Maevsky, Nikolay"]
[WhiteFideId "14105578"]
[BlackFideId "4198220"]
[WhiteElo "1993"]
[BlackElo "2126"]
[Result "0-1"]
[Round "04"]
[TimeControl "180+1"]
[Date "2022.04.05"]
[WhiteClock "0:00:01"]
[BlackClock "0:00:29"]

1. Nf3 {[%clk 0:03:00]}  Nf6 {[%clk 0:02:57]} 2. d4 {[%clk 0:03:00]}  d5 {[%clk 0:02:56]} 3. c4 {[%clk 0:03:01]}  c6 {[%clk 0:02:56]} 4. Nc3 {[%clk 0:03:01]}  dxc4 {[%clk 0:02:56]} 5. a4 {[%clk 0:03:00]}  Bf5 {[%clk 0:02:56]} 6. Nh4 {[%clk 0:02:56]}  Bd7 {[%clk 0:02:54]} 7. e4 {[%clk 0:02:54]}  e6 {[%clk 0:02:45]} 8. Nf3 {[%clk 0:02:52]}  b5 {[%clk 0:02:43]} 9. e5 {[%clk 0:02:40]}  Nd5 {[%clk 0:02:33]} 10. Ne4 {[%clk 0:02:38]}  h6 {[%clk 0:02:20]} 11. g3 {[%clk 0:02:30]}  a5 {[%clk 0:02:20]} 12. Bg2 {[%clk 0:02:29]}  Na6 {[%clk 0:02:19]} 13. O-O {[%clk 0:02:28]}  Nab4 {[%clk 0:02:20]} 14. Qe2 {[%clk 0:02:22]}  Qb8 {[%clk 0:02:16]} 15. Rd1 {[%clk 0:02:16]}  Be7 {[%clk 0:02:16]} 16. h4 {[%clk 0:02:16]}  Nd3 {[%clk 0:02:14]} 17. Rxd3 {[%clk 0:02:12]}  cxd3 {[%clk 0:02:14]} 18. Qxd3 {[%clk 0:02:13]}  Qb6 {[%clk 0:02:02]} 19. Bd2 {[%clk 0:02:09]}  b4 {[%clk 0:01:57]} 20. Rc1 {[%clk 0:02:07]}  Rc8 {[%clk 0:01:56]} 21. Nc5 {[%clk 0:02:06]}  Bxc5 {[%clk 0:01:52]} 22. Rxc5 {[%clk 0:02:04]}  O-O {[%clk 0:01:45]} 23. Nh2 {[%clk 0:01:59]}  Qd8 {[%clk 0:01:35]} 24. h5 {[%clk 0:01:38]}  Ra8 {[%clk 0:01:32]} 25. Ng4 {[%clk 0:01:37]}  f5 {[%clk 0:01:32]} 26. exf6 {[%clk 0:01:35]}  Nxf6 {[%clk 0:01:32]} 27. Ne5 {[%clk 0:01:32]}  Be8 {[%clk 0:01:30]} 28. g4 {[%clk 0:00:59]}  Nd5 {[%clk 0:01:23]} 29. g5 {[%clk 0:00:56]}  hxg5 {[%clk 0:01:20]} 30. Be4 {[%clk 0:00:29]}  Qf6 {[%clk 0:01:12]} 31. f3 {[%clk 0:00:26]}  Rc8 {[%clk 0:01:04]} 32. Ng4 {[%clk 0:00:25]}  Qe7 {[%clk 0:00:58]} 33. Bh7+ {[%clk 0:00:25]}  Kh8 {[%clk 0:00:57]} 34. Ne5 {[%clk 0:00:11]}  Nf4 {[%clk 0:00:47]} 35. Qe4 {[%clk 0:00:10]}  Rf6 {[%clk 0:00:40]} 36. Rc1 {[%clk 0:00:06]}  Bxh5 {[%clk 0:00:34]} 37. Rf1 {[%clk 0:00:04]}  g6 {[%clk 0:00:29]} 38. Nxc6 {[%clk 0:00:02]}  Rxc6 {[%clk 0:00:28]} 39. Qxc6 {[%clk 0:00:03]}  Kxh7 {[%clk 0:00:29]} 40. Bxf4 {[%clk 0:00:01]}  gxf4 {[%clk 0:00:29]} 0-1


[Site "https://www.chess.com"]

[Event "Titled Tuesday Blitz April 05 Early 2022"]
[White "Rastbod, Ali"]
[Black "Li, Xueyi"]
[WhiteFideId "12567477"]
[BlackFideId "8605912"]
[WhiteElo "2147"]
[BlackElo "2091"]
[Result "1-0"]
[Round "04"]
[TimeControl "180+1"]
[Date "2022.04.05"]
[WhiteClock "0:01:18"]
[BlackClock "0:01:29"]

1. d4 {[%clk 0:03:00]}  Nf6 {[%clk 0:02:59]} 2. c4 {[%clk 0:02:56]}  g6 {[%clk 0:02:58]} 3. g3 {[%clk 0:02:52]}  d5 {[%clk 0:02:54]} 4. cxd5 {[%clk 0:02:50]}  Nxd5 {[%clk 0:02:53]} 5. Bg2 {[%clk 0:02:50]}  Nb6 {[%clk 0:02:47]} 6. Nf3 {[%clk 0:02:42]}  Bg7 {[%clk 0:02:47]} 7. O-O {[%clk 0:02:43]}  O-O {[%clk 0:02:46]} 8. e4 {[%clk 0:02:43]}  Na6 {[%clk 0:02:33]} 9. h3 {[%clk 0:02:37]}  c5 {[%clk 0:02:23]} 10. d5 {[%clk 0:02:35]}  e6 {[%clk 0:02:20]} 11. Nc3 {[%clk 0:02:22]}  exd5 {[%clk 0:02:19]} 12. exd5 {[%clk 0:02:22]}  Nc4 {[%clk 0:02:18]} 13. Qb3 {[%clk 0:02:17]}  Nd6 {[%clk 0:02:16]} 14. Bf4 {[%clk 0:02:16]}  Nc7 {[%clk 0:02:02]} 15. Rad1 {[%clk 0:02:09]}  b6 {[%clk 0:01:56]} 16. Ne5 {[%clk 0:02:06]}  Bb7 {[%clk 0:01:54]} 17. Nc6 {[%clk 0:02:05]}  Qd7 {[%clk 0:01:50]} 18. a4 {[%clk 0:01:48]}  a6 {[%clk 0:01:38]} 19. Qxb6 {[%clk 0:01:45]}  Nce8 {[%clk 0:01:33]} 20. Qxc5 {[%clk 0:01:27]}  Kh8 {[%clk 0:01:31]} 21. Rfe1 {[%clk 0:01:24]}  Bf6 {[%clk 0:01:29]} 22. Rxe8 {[%clk 0:01:18]} 1-0


[Site "https://www.chess.com"]

[Event "Titled Tuesday Blitz April 05 Early 2022"]
[White "Rosenberg, Evan S"]
[Black "Fernandez Siles, Luis"]
[WhiteFideId "2019299"]
[BlackFideId "2209420"]
[WhiteElo "2259"]
[BlackElo "2212"]
[Result "1-0"]
[Round "04"]
[TimeControl "180+1"]
[Date "2022.04.05"]
[WhiteClock "0:00:22"]
[BlackClock "0:00:06"]

1. d4 {[%clk 0:03:00]}  Nf6 {[%clk 0:02:59]} 2. Nf3 {[%clk 0:02:59]}  g6 {[%clk 0:02:59]} 3. Nc3 {[%clk 0:02:58]}  Bg7 {[%clk 0:02:58]} 4. e4 {[%clk 0:02:58]}  d6 {[%clk 0:02:58]} 5. h3 {[%clk 0:02:57]}  O-O {[%clk 0:02:56]} 6. Be3 {[%clk 0:02:55]}  Nc6 {[%clk 0:02:56]} 7. Bc4 {[%clk 0:02:49]}  e5 {[%clk 0:02:46]} 8. dxe5 {[%clk 0:02:46]}  Nxe5 {[%clk 0:02:42]} 9. Nxe5 {[%clk 0:02:46]}  dxe5 {[%clk 0:02:42]} 10. O-O {[%clk 0:02:42]}  Qe7 {[%clk 0:02:34]} 11. Bg5 {[%clk 0:02:41]}  c6 {[%clk 0:02:34]} 12. Qf3 {[%clk 0:02:40]}  Be6 {[%clk 0:02:31]} 13. Bd3 {[%clk 0:02:36]}  h6 {[%clk 0:02:04]} 14. Be3 {[%clk 0:02:29]}  Nd7 {[%clk 0:01:51]} 15. a3 {[%clk 0:02:25]}  Nb6 {[%clk 0:01:42]} 16. Qe2 {[%clk 0:02:23]}  Rfd8 {[%clk 0:01:38]} 17. Rad1 {[%clk 0:02:15]}  Rd7 {[%clk 0:01:38]} 18. Rd2 {[%clk 0:02:09]}  Rad8 {[%clk 0:01:37]} 19. Rfd1 {[%clk 0:02:10]}  f5 {[%clk 0:01:21]} 20. exf5 {[%clk 0:02:08]}  gxf5 {[%clk 0:01:22]} 21. Bxb6 {[%clk 0:01:54]}  axb6 {[%clk 0:01:20]} 22. Bc4 {[%clk 0:01:55]}  Rxd2 {[%clk 0:00:41]} 23. Bxe6+ {[%clk 0:01:52]}  Qxe6 {[%clk 0:00:42]} 24. Rxd2 {[%clk 0:01:52]}  Rxd2 {[%clk 0:00:42]} 25. Qxd2 {[%clk 0:01:53]}  e4 {[%clk 0:00:32]} 26. Qd8+ {[%clk 0:01:52]}  Kh7 {[%clk 0:00:32]} 27. Qxb6 {[%clk 0:01:51]}  f4 {[%clk 0:00:25]} 28. Qxb7 {[%clk 0:01:48]}  e3 {[%clk 0:00:25]} 29. fxe3 {[%clk 0:01:42]}  Qxe3+ {[%clk 0:00:19]} 30. Kf1 {[%clk 0:01:32]}  Qc1+ {[%clk 0:00:19]} 31. Kf2 {[%clk 0:00:49]}  Qxc2+ {[%clk 0:00:20]} 32. Ne2 {[%clk 0:00:44]}  Qc5+ {[%clk 0:00:11]} 33. Kf1 {[%clk 0:00:39]}  Qc4 {[%clk 0:00:12]} 34. Qb4 {[%clk 0:00:28]}  Qxb4 {[%clk 0:00:08]} 35. axb4 {[%clk 0:00:28]}  Be5 {[%clk 0:00:08]} 36. b3 {[%clk 0:00:27]}  Kg6 {[%clk 0:00:08]} 37. Kf2 {[%clk 0:00:25]}  Kf5 {[%clk 0:00:08]} 38. Kf3 {[%clk 0:00:25]}  Bd6 {[%clk 0:00:08]} 39. Nd4+ {[%clk 0:00:25]}  Kf6 {[%clk 0:00:06]} 40. Nxc6 {[%clk 0:00:25]}  h5 {[%clk 0:00:06]} 41. b5 {[%clk 0:00:25]}  Ke6 {[%clk 0:00:06]} 42. b6 {[%clk 0:00:25]}  Kd7 {[%clk 0:00:06]} 43. Nd4 {[%clk 0:00:23]}  Bb8 {[%clk 0:00:06]} 44. Ne2 {[%clk 0:00:22]}  Kc6 {[%clk 0:00:06]} 45. Nxf4 {[%clk 0:00:22]}  Kxb6 {[%clk 0:00:06]} 46. Nxh5 {[%clk 0:00:22]} 1-0


[Site "https://www.chess.com"]

[Event "Titled Tuesday Blitz April 05 Early 2022"]
[White "Rottenwohrer Suarez, Juan"]
[Black "Begunov, Konstantin"]
[WhiteFideId "32068182"]
[BlackFideId "4118510"]
[WhiteElo "2158"]
[BlackElo "2262"]
[Result "1-0"]
[Round "04"]
[TimeControl "180+1"]
[Date "2022.04.05"]
[WhiteClock "0:00:09"]
[BlackClock "0:00:05"]

1. d4 {[%clk 0:03:00]}  d5 {[%clk 0:03:00]} 2. c4 {[%clk 0:02:59]}  c6 {[%clk 0:03:00]} 3. Nf3 {[%clk 0:02:59]}  Nf6 {[%clk 0:03:00]} 4. Nc3 {[%clk 0:02:58]}  dxc4 {[%clk 0:03:00]} 5. a4 {[%clk 0:02:58]}  Bg4 {[%clk 0:03:00]} 6. Ne5 {[%clk 0:02:59]}  Bh5 {[%clk 0:03:00]} 7. f3 {[%clk 0:02:51]}  Nfd7 {[%clk 0:02:59]} 8. Nxc4 {[%clk 0:02:50]}  e5 {[%clk 0:02:59]} 9. e4 {[%clk 0:02:36]}  Qh4+ {[%clk 0:02:57]} 10. g3 {[%clk 0:02:32]}  Qf6 {[%clk 0:02:57]} 11. g4 {[%clk 0:02:02]}  exd4 {[%clk 0:02:56]} 12. gxh5 {[%clk 0:01:49]}  dxc3 {[%clk 0:02:55]} 13. bxc3 {[%clk 0:01:26]}  Qh4+ {[%clk 0:02:19]} 14. Ke2 {[%clk 0:01:23]}  Bc5 {[%clk 0:02:13]} 15. Be3 {[%clk 0:01:23]}  O-O {[%clk 0:02:06]} 16. h6 {[%clk 0:01:19]}  Bxe3 {[%clk 0:02:02]} 17. Nxe3 {[%clk 0:01:20]}  Qxh6 {[%clk 0:02:01]} 18. Nf5 {[%clk 0:01:17]}  Qf6 {[%clk 0:02:00]} 19. Rg1 {[%clk 0:01:06]}  g6 {[%clk 0:01:46]} 20. Qd4 {[%clk 0:01:07]}  Re8 {[%clk 0:01:11]} 21. Bh3 {[%clk 0:01:02]}  Kh8 {[%clk 0:00:58]} 22. Nd6 {[%clk 0:01:01]}  Re7 {[%clk 0:00:49]} 23. Nc8 {[%clk 0:00:55]}  Re5 {[%clk 0:00:41]} 24. Bxd7 {[%clk 0:00:50]}  Nxd7 {[%clk 0:00:35]} 25. Qxd7 {[%clk 0:00:51]}  Rh5 {[%clk 0:00:21]} 26. Rg2 {[%clk 0:00:35]}  Qxc3 {[%clk 0:00:20]} 27. Rd1 {[%clk 0:00:34]}  Qc2+ {[%clk 0:00:18]} 28. Rd2 {[%clk 0:00:34]}  Qc4+ {[%clk 0:00:17]} 29. Kf2 {[%clk 0:00:33]}  Qc5+ {[%clk 0:00:14]} 30. Kf1 {[%clk 0:00:24]}  Kg7 {[%clk 0:00:12]} 31. Ne7 {[%clk 0:00:19]}  Qc1+ {[%clk 0:00:10]} 32. Kf2 {[%clk 0:00:19]}  Rc5 {[%clk 0:00:09]} 33. Nf5+ {[%clk 0:00:15]}  Kh8 {[%clk 0:00:05]} 34. Qd4+ {[%clk 0:00:09]} 1-0


[Site "https://www.chess.com"]

[Event "Titled Tuesday Blitz April 05 Early 2022"]
[White "Sadovsky, Artem"]
[Black "Karolczuk, Iwo"]
[WhiteFideId "4155840"]
[BlackFideId "21816972"]
[WhiteElo "2314"]
[BlackElo "2277"]
[Result "1-0"]
[Round "04"]
[TimeControl "180+1"]
[Date "2022.04.05"]
[WhiteClock "0:00:26"]
[BlackClock "0:00:07"]

1. Nf3 {[%clk 0:03:00]}  Nf6 {[%clk 0:02:59]} 2. c4 {[%clk 0:03:00]}  g6 {[%clk 0:02:59]} 3. b3 {[%clk 0:03:00]}  Bg7 {[%clk 0:02:57]} 4. Bb2 {[%clk 0:03:01]}  O-O {[%clk 0:02:47]} 5. g3 {[%clk 0:03:02]}  d6 {[%clk 0:02:44]} 6. Bg2 {[%clk 0:03:02]}  e5 {[%clk 0:02:45]} 7. O-O {[%clk 0:03:02]}  Re8 {[%clk 0:02:45]} 8. d4 {[%clk 0:03:03]}  e4 {[%clk 0:02:45]} 9. Ne1 {[%clk 0:03:04]}  c6 {[%clk 0:02:45]} 10. d5 {[%clk 0:03:02]}  cxd5 {[%clk 0:02:45]} 11. cxd5 {[%clk 0:03:03]}  Na6 {[%clk 0:02:44]} 12. Nc2 {[%clk 0:03:01]}  Bf5 {[%clk 0:02:39]} 13. Ne3 {[%clk 0:03:00]}  Bd7 {[%clk 0:02:39]} 14. Bd4 {[%clk 0:02:56]}  Rc8 {[%clk 0:02:35]} 15. Nc3 {[%clk 0:02:55]}  Nc5 {[%clk 0:02:34]} 16. Rc1 {[%clk 0:02:53]}  b5 {[%clk 0:02:31]} 17. b4 {[%clk 0:02:50]}  Na6 {[%clk 0:02:31]} 18. a3 {[%clk 0:02:48]}  Rc7 {[%clk 0:02:30]} 19. Bxf6 {[%clk 0:02:40]}  Bxf6 {[%clk 0:02:29]} 20. Nxe4 {[%clk 0:02:41]}  Be7 {[%clk 0:02:26]} 21. Qd4 {[%clk 0:02:34]}  f5 {[%clk 0:02:20]} 22. Nd2 {[%clk 0:02:16]}  Bf6 {[%clk 0:02:16]} 23. Qd3 {[%clk 0:02:15]}  Qb8 {[%clk 0:02:12]} 24. Rxc7 {[%clk 0:02:12]}  Qxc7 {[%clk 0:02:13]} 25. Nb3 {[%clk 0:02:12]}  Qb6 {[%clk 0:02:08]} 26. Rc1 {[%clk 0:02:09]}  Bg5 {[%clk 0:02:05]} 27. Nd4 {[%clk 0:02:00]}  f4 {[%clk 0:01:56]} 28. gxf4 {[%clk 0:01:56]}  Bxf4 {[%clk 0:01:57]} 29. Rc6 {[%clk 0:01:18]}  Bxc6 {[%clk 0:01:44]} 30. dxc6 {[%clk 0:01:19]}  Bxe3 {[%clk 0:01:39]} 31. Bd5+ {[%clk 0:01:17]}  Kg7 {[%clk 0:01:36]} 32. fxe3 {[%clk 0:01:18]}  Nc7 {[%clk 0:01:36]} 33. e4 {[%clk 0:01:03]}  Re5 {[%clk 0:01:33]} 34. e3 {[%clk 0:01:01]}  Qb8 {[%clk 0:01:20]} 35. Nf3 {[%clk 0:01:01]}  Rh5 {[%clk 0:00:59]} 36. Qd4+ {[%clk 0:00:57]}  Kh6 {[%clk 0:00:58]} 37. h4 {[%clk 0:00:36]}  Qf8 {[%clk 0:00:17]} 38. e5 {[%clk 0:00:31]}  dxe5 {[%clk 0:00:14]} 39. Nxe5 {[%clk 0:00:25]}  Nxd5 {[%clk 0:00:07]} 40. Ng4# {[%clk 0:00:26]} 1-0


[Site "https://www.chess.com"]